bitfinex-derivatives/quotes_BTCF0:USTF0_20260207
["timestamp","ask_amount","ask_price","bid_price","bid_amount"]
[1770468294573,0.58333333,69239.0,69191.0,0.93508]
[1770468294886,0.58333333,69238.0,69191.0,0.93508]
[1770468295084,0.94453333,69238.0,69187.0,0.14120075]
[1770468295280,0.58333333,69236.0,69187.0,0.14120075]
[1770468295486,0.58333333,69236.0,69188.0,0.31516]
[1770468295788,0.58333333,69234.0,69188.0,0.31516]
[1770468296275,0.58333333,69232.0,69188.0,0.31516]
[1770468296885,0.58333333,69230.0,69188.0,0.31516]
[1770468297082,0.58333333,69230.0,69187.0,0.14120075]
[1770468297274,0.58333333,69228.0,69187.0,0.14120075]
[1770468297477,0.00635351,69202.0,69187.0,0.14120075]
[1770468297975,0.79354534,69227.0,69187.0,0.14120075]
[1770468298179,0.58333333,69225.0,69187.0,0.14120075]
[1770468298589,0.58333333,69223.0,69187.0,0.14120075]
[1770468299079,0.58333333,69221.0,69187.0,0.14120075]
[1770468299275,0.14641303,69260.0,69187.0,0.14120075]
[1770468299276,0.58333333,69231.0,69187.0,0.14120075]
[1770468299681,0.58333333,69229.0,69187.0,0.14120075]
[1770468300090,0.94457333,69228.0,69187.0,0.14120075]
[1770468300286,0.58333333,69228.0,69187.0,0.14120075]
[1770468300581,0.14641303,69260.0,69187.0,0.14120075]
[1770468300582,0.58333333,69226.0,69187.0,0.14120075]
[1770468300986,0.58333333,69224.0,69187.0,0.14120075]
[1770468301496,0.58333333,69222.0,69187.0,0.14120075]
[1770468301881,0.58333333,69220.0,69187.0,0.14120075]
[1770468302282,0.58333333,69218.0,69187.0,0.14120075]
[1770468302484,0.58333333,69218.0,69180.0,0.14123686]
[1770468302783,0.14641303,69240.0,69180.0,0.14123686]
[1770468302784,0.58333333,69216.0,69180.0,0.14123686]
[1770468302982,0.58333333,69216.0,69163.0,0.07552179]
[1770468303187,0.55636874,69214.0,69163.0,0.07552179]
[1770468303684,0.55636874,69212.0,69166.0,0.10447944]
[1770468304090,0.55636874,69210.0,69156.0,0.10447944]
[1770468304289,0.55636874,69210.0,69179.0,0.14678032]
[1770468304588,0.55636874,69208.0,69172.0,0.14450903]
[1770468304783,0.55636874,69208.0,69151.0,0.00013554]
[1770468305095,0.14641303,69220.0,69151.0,0.00013554]
[1770468305096,0.55636874,69199.0,69151.0,0.00013554]
[1770468305487,0.55631874,69197.0,69143.0,0.1460314]
[1770468305786,0.55631874,69197.0,69144.0,0.25158953]
[1770468305988,0.54918104,69195.0,69144.0,0.25158953]
[1770468306184,0.54918104,69195.0,69150.0,0.1431513]
[1770468306491,0.54918104,69193.0,69150.0,0.14264271]
[1770468306680,0.54918104,69191.0,69150.0,0.14264271]
[1770468306880,0.54918104,69189.0,69150.0,0.14264271]
[1770468307085,0.54918104,69187.0,69146.0,0.22864261]
[1770468307283,0.54918104,69185.0,69146.0,0.22864261]
[1770468307489,0.54918104,69183.0,69150.0,0.14143956]
[1770468307784,0.54918104,69182.0,69150.0,0.14143956]
[1770468307995,0.54918104,69180.0,69150.0,0.14143956]
[1770468308184,0.54918104,69178.0,69143.0,0.1460314]
[1770468308386,0.54918104,69176.0,69143.0,0.1460314]
[1770468308585,0.54918104,69174.0,69143.0,0.1460314]
[1770468308785,0.00014675,69173.0,69143.0,0.1460314]
[1770468309091,0.54918104,69172.0,69143.0,0.1460314]
[1770468309282,0.54918104,69171.0,69143.0,0.1460314]
[1770468309482,0.54918104,69170.0,69120.0,0.24545723]
[1770468309784,0.54918104,69169.0,69129.0,0.14187746]
[1770468309983,0.54918104,69168.0,69129.0,0.14187746]
[1770468310188,0.54918104,69166.0,69129.0,0.14187746]
[1770468310387,0.14641303,69180.0,69136.0,0.14440636]
[1770468310388,0.56237288,69164.0,69136.0,0.14440636]
[1770468310589,0.56237288,69162.0,69129.0,0.14187746]
[1770468310784,0.56237288,69160.0,69129.0,0.14187746]
[1770468310981,0.56237288,69158.0,69129.0,0.14187746]
[1770468311191,0.56237288,69156.0,69129.0,0.14187746]
[1770468311394,0.56237288,69154.0,69112.0,0.39339568]
[1770468311595,0.56237288,69154.0,69133.0,0.145691]
[1770468311799,0.7940607,69153.0,69133.0,0.145691]
[1770468312097,0.00011536,69153.0,69133.0,0.145691]
[1770468312297,0.79386534,69152.0,69133.0,0.145691]
[1770468312494,0.56237288,69150.0,69133.0,0.145691]
[1770468312684,0.56237288,69148.0,69126.0,0.14603847]
[1770468312995,0.36156,69149.0,69133.0,0.14163938]
[1770468312996,0.43230534,69149.0,69133.0,0.14163938]
[1770468313294,0.36171573,69148.0,69133.0,0.53405974]
[1770468313489,0.00011573,69148.0,69133.0,0.14163938]
[1770468314494,0.3616,69147.0,69133.0,0.14163938]
[1770468314998,0.3616,69146.0,69133.0,0.14163938]
[1770468315198,0.3616,69147.0,69133.0,0.14163938]
[1770468315387,0.3616,69147.0,69134.0,0.41952687]
[1770468315593,0.56237288,69193.0,69145.0,0.05781114]
[1770468315890,0.56406295,69222.0,69164.0,0.05781114]
[1770468316096,0.56406295,69208.0,69172.0,0.66246645]
[1770468316397,0.61910152,69223.0,69179.0,0.05781114]
[1770468316398,0.56406295,69221.0,69179.0,0.05781114]
[1770468316899,0.56606842,69219.0,69179.0,0.05781114]
[1770468317289,0.56606842,69217.0,69179.0,0.05781114]
[1770468317795,0.56606842,69215.0,69179.0,0.05781114]
[1770468318297,0.7528646,69214.0,69179.0,0.05781114]
[1770468318497,0.56606842,69213.0,69179.0,0.05781114]
[1770468318798,0.18679618,69207.0,69179.0,0.05781114]
[1770468319005,0.56237288,69211.0,69179.0,0.05781114]
[1770468319394,0.74916906,69210.0,69179.0,0.05781114]
[1770468319590,0.56237288,69210.0,69179.0,0.05781114]
[1770468319910,0.56237288,69237.0,69204.0,0.17945564]
[1770468320096,0.42990587,69236.0,69208.0,0.14262437]
[1770468320397,0.58333333,69235.0,69208.0,0.14262437]
[1770468320603,0.58333333,69235.0,69201.0,0.14339078]
[1770468321896,0.58333333,69235.0,69160.0,0.14641303]
[1770468322105,0.0002,69269.0,69155.0,0.26433613]
[1770468322106,0.56237288,69233.0,69155.0,0.26433613]
[1770468322302,0.56237288,69233.0,69178.0,0.14413499]
[1770468322597,0.56237288,69231.0,69171.0,0.14129945]
[1770468322994,0.56237288,69231.0,69144.0,0.29459734]
[1770468323295,0.56237288,69219.0,69146.0,0.43300537]
[1770468324093,0.56237288,69187.0,69146.0,0.43300537]
[1770468324488,0.56237288,69217.0,69170.0,0.43320537]
[1770468324688,0.56237288,69216.0,69170.0,0.43320537]
[1770468325095,0.42990587,69215.0,69170.0,0.43320537]
[1770468325398,0.56237288,69214.0,69170.0,0.43320537]
[1770468326299,0.56237288,69214.0,69172.0,0.42418033]
[1770468326599,0.42990587,69215.0,69172.0,0.42418033]
[1770468326792,0.42990587,69215.0,69183.0,0.42418033]
[1770468327704,0.56237288,69214.0,69172.0,0.43203712]
[1770468328100,0.56237288,69214.0,69172.0,0.41756512]
[1770468329500,0.42990587,69215.0,69177.0,0.42637631]
[1770468329697,0.42990587,69215.0,69177.0,0.44084731]
[1770468330000,0.56237288,69214.0,69177.0,0.42637631]
[1770468330592,0.56237288,69214.0,69177.0,0.44084731]
[1770468330789,0.42990587,69215.0,69181.0,0.43202375]
[1770468330998,0.42990587,69215.0,69188.0,0.43202375]
[1770468331191,0.42990587,69215.0,69190.0,0.43202375]
[1770468331396,0.55937288,69243.0,69196.0,0.00511788]
[1770468331597,0.55937288,69243.0,69209.0,0.1458054]
[1770468331799,0.55937288,69243.0,69196.0,0.00511788]
[1770468332196,0.55937288,69243.0,69184.0,0.00511788]
[1770468332395,0.55937288,69243.0,69186.0,0.00511788]
[1770468334797,0.55937288,69243.0,69189.0,0.01519211]
[1770468334997,0.55937288,69243.0,69205.0,0.14275863]
[1770468337503,0.55937288,69243.0,69206.0,0.00860624]
[1770468337706,0.55937288,69243.0,69205.0,0.14275863]
[1770468338809,0.55937288,69243.0,69206.0,0.00860624]
[1770468339503,0.57830745,69253.0,69210.0,0.01507763]
[1770468339717,0.0002,69276.0,69205.0,0.14275863]
[1770468339718,0.0002,69276.0,69242.0,0.01507763]
[1770468340001,0.57737412,69278.0,69220.0,0.01787763]
[1770468340599,0.57737412,69278.0,69205.0,0.14275863]
[1770468340600,0.57737412,69278.0,69206.0,0.01787763]
[1770468341001,0.57737412,69278.0,69206.0,0.03234163]
[1770468341197,0.57943995,69276.0,69208.0,0.01468013]
[1770468341504,0.57943995,69276.0,69210.0,0.01468013]
[1770468342414,0.57943995,69276.0,69205.0,0.14275863]
[1770468342911,0.58155825,69259.0,69205.0,0.14275863]
[1770468343213,0.58155825,69259.0,69198.0,0.14780551]
[1770468344010,0.58155825,69259.0,69185.0,0.00532523]
[1770468344702,0.58255825,69259.0,69185.0,0.00532523]
[1770468345099,0.58255825,69259.0,69187.0,0.00649012]
[1770468345508,0.58255825,69259.0,69204.0,0.14651037]
[1770468346809,0.58255825,69259.0,69197.0,0.14590299]
[1770468349512,0.58255825,69259.0,69171.0,0.0066396]
[1770468349914,0.58112013,69257.0,69171.0,0.0066396]
[1770468350210,0.58112013,69239.0,69162.0,0.00016708]
[1770468350403,0.58112013,69239.0,69162.0,0.00680668]
[1770468351113,0.58112013,69239.0,69167.0,0.14728309]
[1770468351910,0.58112013,69239.0,69162.0,0.00016708]
[1770468351911,0.58116393,69219.0,69162.0,0.00016708]
[1770468352102,0.58116393,69219.0,69151.0,0.14549361]
[1770468353205,0.58134424,69217.0,69159.0,0.00596725]
[1770468353501,0.58134424,69215.0,69159.0,0.00596725]
[1770468353908,0.58134424,69213.0,69159.0,0.00596725]
[1770468354305,0.58134424,69211.0,69159.0,0.00596725]
[1770468354512,0.58134424,69209.0,69159.0,0.00596725]
[1770468354711,0.58134424,69207.0,69159.0,0.00596725]
[1770468354912,0.58134424,69205.0,69159.0,0.00596725]
[1770468355114,0.57978391,69203.0,69159.0,0.00596725]
[1770468355307,0.57978391,69201.0,69159.0,0.00596725]
[1770468355503,0.14656817,69220.0,69159.0,0.00596725]
[1770468355504,0.57978391,69199.0,69159.0,0.00596725]
[1770468355704,0.57978391,69197.0,69159.0,0.00596725]
[1770468355903,0.57978391,69195.0,69159.0,0.00596725]
[1770468356109,0.57978391,69193.0,69159.0,0.00596725]
[1770468356408,0.57978391,69191.0,69159.0,0.00596725]
[1770468356907,0.57978391,69202.0,69159.0,0.00596725]
[1770468357110,0.001,69203.0,69168.0,0.01180838]
[1770468357311,0.5793972,69203.0,69159.0,0.43478988]
[1770468357610,0.14656817,69200.0,69130.0,0.43478988]
[1770468357815,0.14656817,69200.0,69152.0,0.14348002]
[1770468357816,0.52543096,69199.0,69152.0,0.14348002]
[1770468358016,0.52543096,69199.0,69153.0,0.43478988]
[1770468358215,0.52543096,69197.0,69153.0,0.43478988]
[1770468359607,0.52643096,69197.0,69153.0,0.43478988]
[1770468359820,0.52543096,69195.0,69153.0,0.43478988]
[1770468360120,0.52543096,69195.0,69152.0,0.14348002]
[1770468360121,0.52543096,69193.0,69152.0,0.14348002]
[1770468360309,0.52543096,69193.0,69153.0,0.42196509]
[1770468360617,0.52543096,69191.0,69153.0,0.42196509]
[1770468361222,0.14656817,69220.0,69152.0,0.14348002]
[1770468361223,0.52543096,69202.0,69155.0,0.42542972]
[1770468361519,0.52543096,69200.0,69155.0,0.42542972]
[1770468361817,0.52543096,69198.0,69155.0,0.42542972]
[1770468362018,0.52543096,69196.0,69152.0,0.14348002]
[1770468362221,0.52543096,69194.0,69152.0,0.14348002]
[1770468362516,0.14656817,69200.0,69145.0,0.14757573]
[1770468362517,0.52543096,69192.0,69145.0,0.14757573]
[1770468362719,0.0001139,69191.0,69145.0,0.14757573]
[1770468362910,0.52560836,69190.0,69145.0,0.14757573]
[1770468363115,0.52543096,69190.0,69134.0,0.42542972]
[1770468363317,0.52543096,69188.0,69139.0,0.145548]
[1770468363619,0.52543096,69186.0,69132.0,0.14711132]
[1770468363821,0.52543096,69184.0,69132.0,0.14711132]
[1770468364021,0.52543096,69182.0,69132.0,0.14711132]
[1770468364210,0.52543096,69180.0,69132.0,0.14711132]
[1770468364721,0.52543096,69178.0,69132.0,0.14711132]
[1770468364930,0.52543096,69176.0,69132.0,0.14711132]
[1770468365223,0.52543096,69174.0,69132.0,0.14711132]
[1770468365414,0.52543096,69172.0,69132.0,0.14711132]
[1770468365620,0.52543096,69170.0,69132.0,0.14711132]
[1770468365823,0.52543096,69170.0,69128.0,0.42945566]
[1770468365824,0.52543096,69168.0,69128.0,0.42945566]
[1770468366017,0.57322364,69166.0,69128.0,0.42945566]
[1770468366317,0.57322364,69177.0,69140.0,0.43864329]
[1770468366520,0.001,69172.0,69140.0,0.43864329]
[1770468367918,0.0001553,69171.0,69140.0,0.43864329]
[1770468368125,0.00011567,69170.0,69140.0,0.43864329]
[1770468368314,0.001,69172.0,69140.0,0.43864329]
[1770468368825,0.57322364,69186.0,69140.0,0.43864329]
[1770468369819,0.57322364,69184.0,69140.0,0.43864329]
[1770468370724,0.57119299,69182.0,69140.0,0.43864329]
[1770468370924,0.57119299,69180.0,69140.0,0.43864329]
[1770468371716,0.57119299,69191.0,69143.0,0.45062197]
[1770468372126,0.57119299,69190.0,69143.0,0.45062197]
[1770468372521,0.14656817,69210.0,69143.0,0.45062197]
[1770468372728,0.57119299,69201.0,69161.0,0.45062197]
[1770468373023,0.57119299,69211.0,69164.0,0.47108133]
[1770468373224,0.57119299,69211.0,69166.0,0.47108133]
[1770468373419,0.57119299,69211.0,69152.0,0.014476]
[1770468373420,0.57119299,69236.0,69194.0,0.47108133]
[1770468373624,0.57119299,69236.0,69216.0,0.14407031]
[1770468373827,0.57119299,69236.0,69194.0,0.47108133]
[1770468374025,0.57119299,69236.0,69208.0,0.14248181]
[1770468374221,0.57119299,69236.0,69209.0,0.55183702]
[1770468374422,0.57119299,69269.0,69209.0,0.55183702]
[1770468375224,0.57119299,69269.0,69211.0,0.55183702]
[1770468376127,0.14656817,69260.0,69195.0,0.55183702]
[1770468376328,0.57119299,69259.0,69195.0,0.55183702]
[1770468378233,0.57119299,69259.0,69206.0,0.14435142]
[1770468378433,0.57119299,69259.0,69207.0,0.55183702]
[1770468378631,0.57219299,69259.0,69207.0,0.55183702]
[1770468378833,0.57219299,69259.0,69206.0,0.14435142]
[1770468379333,0.57219299,69259.0,69195.0,0.55183702]
[1770468379530,0.57119299,69259.0,69195.0,0.55183702]
[1770468379835,0.57119299,69259.0,69174.0,0.01457784]
[1770468379836,0.57219299,69259.0,69187.0,0.14608317]
[1770468380031,0.57219299,69259.0,69175.0,0.55183702]
[1770468380233,0.57119299,69239.0,69175.0,0.55183702]
[1770468380531,0.57119299,69239.0,69163.0,0.55183702]
[1770468380732,0.57119299,69239.0,69174.0,0.14714199]
[1770468380935,0.57119299,69239.0,69175.0,0.55183702]
[1770468384134,0.57219299,69239.0,69175.0,0.55183702]
[1770468385546,0.57119299,69239.0,69175.0,0.55183702]
[1770468386241,0.57219299,69239.0,69175.0,0.55183702]
[1770468388744,0.57119299,69239.0,69175.0,0.55183702]
[1770468389144,0.57219299,69239.0,69175.0,0.55183702]
[1770468389843,0.57119299,69239.0,69175.0,0.55183702]
[1770468392644,0.57219299,69239.0,69175.0,0.55183702]
[1770468393044,0.57219299,69239.0,69178.0,0.55183702]
[1770468393237,0.57119299,69239.0,69178.0,0.55183702]
[1770468393438,0.57219299,69239.0,69178.0,0.55183702]
[1770468394946,0.57119299,69239.0,69178.0,0.56630702]
[1770468395344,0.57119299,69239.0,69181.0,0.55183702]
[1770468399447,0.57686112,69237.0,69181.0,0.55183702]
[1770468400052,0.57686112,69237.0,69174.0,0.14714199]
[1770468400346,0.57686112,69230.0,69174.0,0.14714199]
[1770468400553,0.57686112,69230.0,69175.0,0.54222467]
[1770468402045,0.57786112,69230.0,69175.0,0.54222467]
[1770468402639,0.57686112,69229.0,69175.0,0.54222467]
[1770468404551,0.57786112,69229.0,69175.0,0.54222467]
[1770468405050,0.57786112,69229.0,69181.0,0.54222467]
[1770468405259,0.57686112,69229.0,69187.0,0.54222467]
[1770468405447,0.001,69229.0,69199.0,0.54222467]
[1770468405753,0.001,69229.0,69191.0,0.014468]
[1770468405754,0.57686112,69250.0,69206.0,0.54222467]
[1770468409057,0.57686112,69250.0,69182.0,0.54222467]
[1770468410651,0.57786112,69250.0,69182.0,0.54222467]
[1770468411056,0.57786112,69250.0,69193.0,0.54222467]
[1770468411260,0.57686112,69250.0,69193.0,0.54222467]
[1770468412348,0.57686112,69250.0,69194.0,0.54222467]
[1770468413752,0.57686112,69250.0,69198.0,0.54039433]
[1770468414148,0.57686112,69250.0,69200.0,0.54039433]
[1770468418460,0.57686112,69250.0,69200.0,0.55486033]
[1770468418661,0.57686112,69250.0,69203.0,0.54222467]
[1770468419055,0.57686112,69250.0,69205.0,0.54222467]
[1770468420055,0.57686112,69250.0,69209.0,0.54222467]
[1770468420860,0.71891447,69285.0,69193.0,0.63646314]
[1770468420861,0.57686112,69259.0,69220.0,0.54222467]
[1770468421459,0.57686112,69259.0,69230.0,0.54222467]
[1770468422055,0.57686112,69259.0,69219.0,0.54222467]
[1770468422358,0.0002,69294.0,69202.0,0.9352]
[1770468422359,0.0002,69294.0,69241.0,0.14698134]
[1770468422553,0.57686112,69269.0,69241.0,0.14698134]
[1770468423353,0.57686112,69269.0,69241.0,0.68920601]
[1770468423665,0.57686112,69279.0,69242.0,0.54222467]
[1770468426957,0.54192278,69308.0,69242.0,0.54222467]
[1770468427357,0.54192278,69308.0,69244.0,0.54530413]
[1770468427758,0.54192278,69308.0,69241.0,0.14698134]
[1770468427759,0.54192278,69308.0,69246.0,0.54530413]
[1770468428169,0.54192278,69308.0,69248.0,0.54530413]
[1770468428662,0.54192278,69308.0,69259.0,0.54530413]
[1770468429468,0.54192278,69308.0,69242.0,0.53933457]
[1770468429769,0.54292278,69308.0,69242.0,0.53933457]
[1770468430769,0.54192278,69308.0,69242.0,0.53933457]
[1770468430957,0.54192278,69308.0,69241.0,0.14698134]
[1770468430958,0.54192278,69308.0,69249.0,0.53958344]
[1770468431165,0.54192278,69308.0,69253.0,0.53958344]
[1770468431665,0.54192278,69308.0,69241.0,0.14698134]
[1770468431666,0.54192278,69308.0,69255.0,0.53958344]
[1770468431864,0.54192278,69308.0,69257.0,0.53958344]
[1770468432565,0.54292278,69308.0,69259.0,0.53958344]
[1770468432769,0.54292278,69308.0,69266.0,0.53958344]
[1770468433170,0.54192278,69308.0,69266.0,0.53958344]
[1770468433665,0.56284666,69323.0,69266.0,0.55403544]
[1770468434062,0.56284666,69323.0,69270.0,0.5372504]
[1770468434367,0.56284666,69323.0,69260.0,0.14644818]
[1770468434368,0.56284666,69323.0,69274.0,0.5372504]
[1770468434565,0.56284666,69323.0,69276.0,0.5372504]
[1770468435069,0.56284666,69323.0,69278.0,0.5372113]
[1770468435266,0.56284666,69334.0,69313.0,0.14353659]
[1770468436257,0.56284666,69334.0,69293.0,0.66423435]
[1770468436465,0.56284666,69334.0,69274.0,0.5467751]
[1770468438377,0.56284666,69334.0,69294.0,0.14445696]
[1770468439070,0.56284666,69334.0,69287.0,0.14304142]
[1770468439867,0.56284666,69333.0,69256.0,0.5467751]
[1770468440072,0.56284666,69332.0,69256.0,0.5467751]
[1770468440776,0.56284666,69332.0,69277.0,0.14306207]
[1770468440970,0.56284666,69327.0,69277.0,0.68983717]
[1770468441970,0.56284666,69327.0,69278.0,0.5467751]
[1770468443761,0.56384666,69327.0,69278.0,0.5467751]
[1770468443965,0.56384666,69327.0,69281.0,0.5467751]
[1770468444575,0.56284666,69327.0,69281.0,0.5467751]
[1770468445669,0.0002,69340.0,69295.0,0.5467751]
[1770468445670,0.56284666,69339.0,69295.0,0.5467751]
[1770468446472,0.56284666,69348.0,69292.0,0.5467751]
[1770468448473,0.56284666,69348.0,69295.0,0.5467751]
[1770468452280,0.56284666,69347.0,69295.0,0.5467751]
[1770468453579,0.56284666,69347.0,69277.0,0.14306207]
[1770468453580,0.56284666,69347.0,69301.0,0.5467751]
[1770468455186,0.56284666,69347.0,69303.0,0.5467751]
[1770468455385,0.56284666,69347.0,69305.0,0.5467751]
[1770468457781,0.56636139,69341.0,69278.0,0.56810955]
[1770468458584,0.56636139,69324.0,69278.0,0.56810955]
[1770468459491,0.56636139,69323.0,69278.0,0.56810955]
[1770468461485,0.56636139,69323.0,69278.0,0.58255855]
[1770468461789,0.57263844,69332.0,69285.0,0.56810955]
[1770468461997,0.57263844,69332.0,69290.0,0.56810955]
[1770468462199,0.57263844,69332.0,69290.0,0.58255655]
[1770468462485,0.57263844,69332.0,69290.0,0.56810955]
[1770468462693,0.56636139,69335.0,69290.0,0.56810955]
[1770468463488,0.56636139,69335.0,69292.0,0.56810955]
[1770468463685,0.57263844,69341.0,69303.0,0.56810955]
[1770468464194,0.56636139,69348.0,69303.0,0.56810955]
[1770468465096,0.57263844,69347.0,69303.0,0.56810955]
[1770468465392,0.56636139,69346.0,69303.0,0.56810955]
[1770468465587,0.57263844,69347.0,69303.0,0.56810955]
[1770468465792,0.56636139,69346.0,69303.0,0.56810955]
[1770468466188,0.56636139,69346.0,69305.0,0.56810955]
[1770468466386,0.56636139,69354.0,69307.0,0.56810955]
[1770468466882,0.56636139,69354.0,69300.0,0.14598566]
[1770468466883,0.56636139,69354.0,69309.0,0.56810955]
[1770468467091,0.0002,69356.0,69309.0,0.56810955]
[1770468467496,0.56636139,69364.0,69314.0,0.56810955]
[1770468468293,0.56636139,69358.0,69314.0,0.56810955]
[1770468469489,0.56736139,69358.0,69314.0,0.56810955]
[1770468469884,0.56636139,69356.0,69314.0,0.56810955]
[1770468470490,0.56636139,69356.0,69293.0,0.63485812]
[1770468470491,0.56636139,69356.0,69334.0,0.14714844]
[1770468470689,0.56636139,69356.0,69334.0,0.14683884]
[1770468472192,0.56636139,69356.0,69341.0,0.1441155]
[1770468472502,0.56636139,69367.0,69341.0,0.1441155]
[1770468472798,0.001,69356.0,69341.0,0.1441155]
[1770468473391,0.56636139,69368.0,69341.0,0.1441155]
[1770468474795,0.56636139,69368.0,69334.0,0.14683884]
[1770468475597,0.56636139,69366.0,69334.0,0.14683884]
[1770468475901,0.56636139,69366.0,69315.0,0.56810955]
[1770468476792,0.56736139,69366.0,69315.0,0.56810955]
[1770468476991,0.56736139,69366.0,69333.0,0.14486653]
[1770468478000,0.56736139,69366.0,69326.0,0.1472918]
[1770468478202,0.56736139,69366.0,69333.0,0.14792699]
[1770468478500,0.56736139,69366.0,69326.0,0.1472918]
[1770468478696,0.56736139,69366.0,69315.0,0.56810955]
[1770468478697,0.56736139,69366.0,69306.0,0.56810955]
[1770468479097,0.56756139,69366.0,69306.0,0.56810955]
[1770468479298,0.56756139,69366.0,69325.0,0.14195238]
[1770468479693,0.56756139,69366.0,69325.0,0.71006193]
[1770468480399,0.56736139,69366.0,69325.0,0.71006193]
[1770468481196,0.56636139,69366.0,69325.0,0.71006193]
[1770468481396,0.56736139,69366.0,69325.0,0.71006193]
[1770468482098,0.56636139,69366.0,69325.0,0.71006193]
[1770468484101,0.56636139,69366.0,69325.0,0.14195238]
[1770468484803,0.56636139,69359.0,69307.0,0.56810955]
[1770468486306,0.56736139,69359.0,69307.0,0.56810955]
[1770468487905,0.56736139,69359.0,69320.0,0.14203481]
[1770468488107,0.57216468,69355.0,69320.0,0.14203481]
[1770468488509,0.57216468,69355.0,69313.0,0.14280006]
[1770468488808,0.57216468,69355.0,69321.0,0.54223455]
[1770468489708,0.001,69359.0,69321.0,0.54223455]
[1770468490507,0.001,69359.0,69324.0,0.01444]
[1770468490811,0.54192905,69359.0,69325.0,0.57095829]
[1770468491011,0.54192905,69359.0,69320.0,0.14607947]
[1770468491507,0.54092905,69356.0,69320.0,0.14607947]
[1770468491812,0.54092905,69354.0,69320.0,0.14607947]
[1770468494506,0.54192905,69354.0,69320.0,0.14607947]
[1770468494913,1.26064352,69354.0,69320.0,0.14607947]
[1770468495112,0.54092905,69353.0,69320.0,0.14607947]
[1770468495514,0.54092905,69353.0,69320.0,0.71703776]
[1770468496109,0.54092905,69353.0,69321.0,0.57095829]
[1770468499309,0.54112905,69363.0,69323.0,0.57095829]
[1770468500118,0.54092905,69363.0,69323.0,0.57095829]
[1770468503224,0.54192905,69363.0,69323.0,0.57095829]
[1770468503414,0.54092905,69362.0,69323.0,0.57095829]
[1770468503614,0.54092905,69362.0,69320.0,0.14607947]
[1770468504517,0.54092905,69360.0,69320.0,0.14607947]
[1770468505713,0.54112905,69360.0,69313.0,0.14280006]
[1770468505915,0.54092905,69349.0,69296.0,0.57095829]
[1770468506512,0.54092905,69349.0,69311.0,0.14372845]
[1770468506718,0.54092905,69349.0,69311.0,0.71468674]
[1770468506925,0.54092905,69349.0,69311.0,0.14372845]
[1770468507112,0.54092905,69349.0,69304.0,0.14374289]
[1770468507316,0.54092905,69349.0,69304.0,0.71470118]
[1770468507518,0.54092905,69349.0,69304.0,0.57095829]
[1770468507717,0.54192905,69349.0,69304.0,0.57095829]
[1770468509917,0.54092905,69349.0,69304.0,0.57095829]
[1770468510117,0.54192905,69349.0,69304.0,0.57095829]
[1770468510421,0.54192905,69349.0,69310.0,0.14170899]
[1770468512127,0.54092905,69349.0,69310.0,0.14170899]
[1770468512322,0.54192905,69349.0,69310.0,0.14170899]
[1770468512926,0.54192905,69349.0,69304.0,0.57095829]
[1770468513233,0.54192905,69349.0,69303.0,0.14139132]
[1770468513729,0.54092905,69345.0,69303.0,0.14139132]
[1770468514529,0.54092905,69334.0,69295.0,0.57095829]
[1770468516232,0.54192905,69334.0,69295.0,0.57095829]
[1770468516434,0.54192905,69334.0,69274.0,0.00016155]
[1770468516435,0.54192905,69334.0,69307.0,0.14798248]
[1770468517523,0.001,69334.0,69308.0,0.53799651]
[1770468518030,0.56380744,69334.0,69308.0,0.53799651]
[1770468518932,0.93388,69333.0,69308.0,0.53799651]
[1770468519327,0.56280744,69334.0,69308.0,0.53799651]
[1770468519633,0.0002,69349.0,69308.0,0.53799651]
[1770468519634,0.93388,69333.0,69308.0,0.53799651]
[1770468519929,0.56280744,69346.0,69308.0,0.53799651]
[1770468519930,0.93388,69336.0,69308.0,0.53799651]
[1770468521119,1.49668744,69336.0,69308.0,0.53799651]
[1770468522229,0.56280744,69336.0,69308.0,0.53799651]
[1770468522426,0.93388,69335.0,69308.0,0.53799651]
[1770468522626,0.56280744,69336.0,69308.0,0.53799651]
[1770468522825,0.93388,69335.0,69308.0,0.53799651]
[1770468524834,0.93384,69334.0,69308.0,0.53799651]
[1770468525234,0.56280744,69336.0,69308.0,0.53799651]
[1770468525432,0.93384,69335.0,69308.0,0.53799651]
[1770468526436,0.93384,69334.0,69308.0,0.53799651]
[1770468527241,0.93384,69333.0,69308.0,0.53799651]
[1770468527536,0.93384,69332.0,69308.0,0.53799651]
[1770468527934,0.56280744,69345.0,69308.0,0.53799651]
[1770468528135,0.91624,69344.0,69308.0,0.53799651]
[1770468528334,0.56280744,69343.0,69308.0,0.53799651]
[1770468529141,0.93384,69342.0,69308.0,0.53799651]
[1770468529338,0.56280744,69343.0,69308.0,0.53799651]
[1770468529339,0.93384,69341.0,69308.0,0.53799651]
[1770468530444,0.56280744,69340.0,69308.0,0.53799651]
[1770468531145,0.56280744,69340.0,69307.0,0.14798248]
[1770468532741,0.56380744,69340.0,69307.0,0.14798248]
[1770468534441,0.56280744,69338.0,69307.0,0.14798248]
[1770468535644,0.56380744,69338.0,69307.0,0.14798248]
[1770468535847,0.57648505,69334.0,69307.0,0.14798248]
[1770468536042,0.56280744,69333.0,69307.0,0.14798248]
[1770468536244,0.56280744,69331.0,69307.0,0.14798248]
[1770468537345,0.93384,69330.0,69308.0,0.53799651]
[1770468538535,0.56280744,69329.0,69307.0,0.14798248]
[1770468540648,0.56280744,69329.0,69300.0,0.14698601]
[1770468541442,0.56280744,69329.0,69275.0,0.53799651]
[1770468541643,0.56280744,69321.0,69275.0,0.53799651]
[1770468542645,0.56280744,69321.0,69288.0,0.14233182]
[1770468542842,0.56280744,69321.0,69275.0,0.53799651]
[1770468543242,0.56280744,69314.0,69275.0,0.53799651]
[1770468543645,0.56280744,69314.0,69278.0,0.14641131]
[1770468544045,0.56280744,69313.0,69278.0,0.14641131]
[1770468545038,0.56280744,69313.0,69274.0,0.00016155]
[1770468545245,0.56280744,69313.0,69232.0,0.67771136]
[1770468545246,0.56280744,69313.0,69257.0,0.53799651]
[1770468545645,0.56280744,69299.0,69257.0,0.53799651]
[1770468548554,0.56280744,69299.0,69270.0,0.14229627]
[1770468550157,0.56280744,69299.0,69271.0,0.54250845]
[1770468550553,1.29519952,69316.0,69271.0,0.54250845]
[1770468550554,0.52893072,69315.0,69271.0,0.54250845]
[1770468550755,0.0002,69320.0,69280.0,0.54250845]
[1770468550953,0.0002,69320.0,69284.0,0.54250845]
[1770468551150,0.52893072,69324.0,69286.0,0.54250845]
[1770468551356,0.52893072,69324.0,69270.0,0.28826459]
[1770468551357,0.52893072,69333.0,69290.0,0.54250845]
[1770468551759,0.52893072,69333.0,69271.0,0.54250845]
[1770468552153,0.52893072,69328.0,69275.0,0.54250845]
[1770468552357,0.52893072,69328.0,69284.0,0.54250845]
[1770468557551,0.52893072,69328.0,69286.0,0.54250845]
[1770468557962,0.52893072,69328.0,69288.0,0.54250845]
[1770468560169,0.52893072,69340.0,69288.0,0.54250845]
[1770468560956,0.52893072,69332.0,69288.0,0.54250845]
[1770468561855,0.52893072,69331.0,69288.0,0.54250845]
[1770468564159,0.52893072,69327.0,69288.0,0.54250845]
[1770468565071,0.52893072,69323.0,69288.0,0.54250845]
[1770468565875,0.52893072,69321.0,69288.0,0.54250845]